Cogmind - Beta 17 @@@ ROGUE MODE // 2026.07.19 @ 22:02:30 // AFD2019/Pay2Buy Player: obl-vn Result: Self-destructed Performance ------------- Evolutions (1) 500 Regions Visited (3) 600 Robots Destroyed (32) 160 Value Destroyed (596) 596 Prototype IDs (0) 0 Alien Tech Used (0) 0 Bonus (0) 0 TOTAL SCORE: 1856 Bonus ------- None Cogmind --------- Core Integrity 388/400 Matter 300/300 Energy 198/265 System Corruption 0% Temperature Cool (0) Movement Treading (155) Location -9/Materials Parts ------- > --- POWER (1) -------- Improved Ion Engine > --- PROPULSION (3) --- Light Treads Light Treads Advanced Treads > --- UTILITY (3) ------ Cooling System Hardened Medium Armor Plating > --- WEAPON (2) ------- Flamer > --- INVENTORY (10) --- (None) Peak State ------------ > --- POWER ------------ Improved Ion Engine > --- PROPULSION ------- Light Treads Light Treads Advanced Treads > --- UTILITY ---------- Cooling System Cooling System Hardened Medium Armor Plating > --- WEAPON ----------- Flamer Flamer > --- INVENTORY -------- (None) [Rating: 18] Favorites ----------- Power Improved Ion Engine Engine Improved Ion Engine Propulsion Light Treads Treads Light Treads Utility Cooling System Device Cooling System Protection Hardened Medium Armor Plating Weapon Flamer Special Weapon Flamer Build | -11 -10 -10 -9 ------- Run | Yrd Mat Min Mat Slots Evolved 2 | . . . 2 Power . | . . . . Propulsion 1 | . . . 1 Utility 1 | . . . 1 Weapon . | . . . . Parts Attached 2 | . 2 . . Power 1 | . 1 . . Engine 1 | . 1 . . Core . | . . . . Reactor . | . . . . Propulsion 1 | . 1 . . Treads 1 | . 1 . . Leg . | . . . . Wheel . | . . . . Hover . | . . . . Flight . | . . . . Utility . | . . . . Device . | . . . . Storage . | . . . . Processor . | . . . . Hackware . | . . . . Protection . | . . . . Artifact . | . . . . Weapon . | . . . . Energy Gun . | . . . . Energy Cannon . | . . . . Ballistic Gun . | . . . . Ballistic Cannon . | . . . . Launcher . | . . . . Special Weapon . | . . . . Impact Weapon . | . . . . Slashing Weapon . | . . . . Piercing Weapon . | . . . . Special Melee Weapon . | . . . . Unidentified Prototypes . | . . . . Parts Lost 6 | . 4 . 2 Power 1 | . 1 . . Propulsion 1 | . 1 . . Utility 1 | . . . 1 Weapon 3 | . 2 . 1 Highest Loss Streak 2 | . 2 . 2 To Critical Strikes . | . . . . Average Backups . | . . . . Power . | . . . . Propulsion . | . . . . Utility . | . . . . Weapon . | . . . . Tool/Special . | . . . . Unused Backups . | . . . . Power . | . . . . Propulsion . | . . . . Utility . | . . . . Weapon . | . . . . Tool/Special . | . . . . Average Slot Usage (%) 98 | . 99 100 93 Engine 13 | . 13 14 11 Treads 27 | . 27 28 27 Device 27 | . 28 28 22 Protection 1 | . . . 11 Special Weapon 27 | . 27 28 21 Peak Build Rating 18 | 12 12 12 18 Average Rating 12 | 12 11 12 16 On Entrance 9 | . 12 12 12 Avg Prop Armor Cover (%) . | . . . . Naked Turns . | . . . . Heaviest Build 23 | 15 15 15 23 Greatest Support 62 | 40 40 40 62 Greatest Overweight (x) . | . . . . Average Overweight (x) . | . . . . Largest Inventory Capacity 10 | 10 10 10 10 Average Capacity 10 | 10 10 10 10 Most Carried 2 | . 2 . . Average Carried . | . . . . Final Capacity 10 | 10 10 10 10 Final Carried . | . . . . Class Distribution -------------------- 100% | Mutant Dominant Class ---------------- Mutant | -10/Materials Mutant | -10/Mines Mutant | -9/Materials Resources | -11 -10 -10 -9 ----------- Run | Yrd Mat Min Mat Matter Collected 210 | 113 97 . . Remotely . | . . . . Salvage Created 516 | 113 263 . 140 Parts . | . . . . Haulers Intercepted 1 | . 1 . . Recyclers Shooed . | . . . . Parts Field Recycled . | . . . . Retrieved Matter . | . . . . Parts Self-Destructed . | . . . . Prevented . | . . . . Parts Restored . | . . . . Kills | -11 -10 -10 -9 ------- Run | Yrd Mat Min Mat Combat Hostiles Destroyed 23 | . 18 . 5 Cannons 18 | . 15 . 3 Classes Destroyed 7 | 3 4 . . Worker 2 | 1 1 . . Tunneler 4 | 4 . . . Hauler 1 | . 1 . . Recycler 1 | 1 . . . Watcher 1 | . 1 . . Swarmer 10 | . 10 . . Grunt 13 | . 8 . 5 Best Kill Streak 4 | 2 3 . 4 Combat Bots Only 4 | . 3 . 4 Max Kills in Single Turn 1 | 1 1 . 1 Gunslinging . | . . . . Exploded . | . . . . Melee . | . . . . Uniques/NPCs Destroyed . | . . . . Combat | -11 -10 -10 -9 -------- Run | Yrd Mat Min Mat Hostile Shots Fired 86 | . 67 . 19 Missed 19 | . 13 . 6 Hits 67 | . 54 . 13 Projectile 67 | . 54 . 13 Damage Taken 695 | . 554 . 141 Core 103 | . 91 . 12 Absorbed by Shields . | . . . . Core Remaining (%) 81 | 100 . 63 . Volleys Fired 75 | 8 49 . 18 Largest 2 | 2 2 . 2 Hottest 200 | 200 200 . 200 Shots Fired 140 | 16 96 . 28 Gun . | . . . . Cannon . | . . . . Launcher . | . . . . Special 140 | 16 96 . 28 Kinetic . | . . . . Thermal 140 | 16 96 . 28 Explosive . | . . . . Electromagnetic . | . . . . Robot Hit Streak 16 | 13 16 . 14 Robot Miss Streak 3 | . 3 . 2 Penetration Max . | . . . . Secondary Targets . | . . . . Shots Hit Robots 98 | 13 62 . 23 Core Hits 45 | 6 29 . 10 Critical Kills . | . . . . Critical Parts Destroyed . | . . . . Critical Strikes 10 | 3 4 . 3 Burn 10 | 3 4 . 3 Melee Attacks . | . . . . Impact . | . . . . Slashing . | . . . . Piercing . | . . . . Sneak Attacks . | . . . . Combat Hostiles . | . . . . Follow-up Attacks . | . . . . Damage Inflicted 1146 | 142 730 . 274 Guns . | . . . . Cannons . | . . . . Explosions . | . . . . Melee . | . . . . Ramming 12 | . 12 . . Kinetic . | . . . . Thermal 1134 | 142 718 . 274 Explosive . | . . . . Electromagnetic . | . . . . Impact . | . . . . Slashing . | . . . . Piercing . | . . . . Highest Corruption . | . . . . Average Corruption . | . . . . Corruption Purged . | . . . . Corruption Blocked . | . . . . Overload Shots . | . . . . Overflow Damage 2 | 2 . . . Projectiles 2 | 2 . . . Explosions . | . . . . Melee . | . . . . Knockbacks . | . . . . Impact . | . . . . Kinetic . | . . . . Secondary . | . . . . Self-Inflicted Damage . | . . . . Shots . | . . . . Rammed 1 | . 1 . . Targets Rammed 2 | . 2 . . Kicked . | . . . . Crushed 1 | . 1 . . Highest Temperature . | . . . . Average Temperature . | . . . . Received Heat Transfer 234 | . 156 . 78 Siege Activations . | . . . . Martial Activations . | . . . . Shielding Activations . | . . . . Robots Disrupted 1 | . . . 1 Combat Hostiles 1 | . . . 1 Robots Corrupted . | . . . . Combat Hostiles . | . . . . Parts Fried . | . . . . Impact Corruptions . | . . . . Robots Melted 6 | 1 3 . 2 Combat Hostiles 5 | . 3 . 2 Parts Melted 2 | 1 1 . . Heat Transferred 9520 | 1520 5680 . 2320 Parts Sabotaged . | . . . . Parts Stolen . | . . . . Parts Stripped . | . . . . Power Chain Reactions . | . . . . Alert | -11 -10 -10 -9 ------- Run | Yrd Mat Min Mat Maximum Alert Level . | . . . . Low Security (%) 100 | 100 100 100 100 Level 1 . | . . . . Level 2 . | . . . . Level 3 . | . . . . Level 4 . | . . . . Level 5 . | . . . . High Security . | . . . . Max Security . | . . . . Peak Influence 102 | 10 102 . 80 Initial 3 | . 3 . . Average 34 | 1 43 . 11 Influence Increases 724 | 30 574 . 120 Destroy 0b10 Robot/C 460 | . 360 . 100 Destroy 0b10 Robot/NC 45 | 30 15 . . Destroy Leader 94 | . 74 . 20 Successful Hack 20 | . 20 . . Partial Spotted 15 | . 15 . . Lose Combat Pursuer 90 | . 90 . . Influence Decreases 674 | 25 579 . 70 Entered New Map 2 | . 2 . . Time Decay 516 | 25 441 . 50 Lost Part 60 | . 40 . 20 Purge Threat 96 | . 96 . . Squads Dispatched 6 | . 4 . 2 Investigation 4 | . 3 . 1 Extermination . | . . . . Reinforcement 2 | . 1 . 1 Assault . | . . . . Garrison . | . . . . Intercept . | . . . . Searches Triggered . | . . . . Construction Impeded . | . . . . Haulers Reinforced . | . . . . Active Scanning Responses . | . . . . Cargo Convoy Interrupts . | . . . . Stealth | -11 -10 -10 -9 --------- Run | Yrd Mat Min Mat Distress Signals 6 | . 3 . 3 Communications Jammed . | . . . . Distress Signals . | . . . . Times Spotted 41 | . 29 . 12 Peak Tracking Total 5 | . 5 . 5 Tactical Retreats 3 | . 3 . . Traps | -11 -10 -10 -9 ------- Run | Yrd Mat Min Mat Traps Triggered 5 | . 4 . 1 Indirectly . | . . . . Trap Hack Attempts . | . . . . Triggered . | . . . . Disarmed . | . . . . Reprogrammed . | . . . . Reused . | . . . . Traps Extracted . | . . . . Installed . | . . . . Triggered . | . . . . Machines | -11 -10 -10 -9 ---------- Run | Yrd Mat Min Mat Machines Disabled . | . . . . Max in Single Turn . | . . . . Machines Repaired . | . . . . Machines Dismantled . | . . . . Machines Sabotaged . | . . . . Overloaded Fab Kills . | . . . . Hacking | -11 -10 -10 -9 --------- Run | Yrd Mat Min Mat Machines Accessed 7 | . 7 . . Terminals 7 | . 7 . . Fabricators . | . . . . Repair Stations . | . . . . Recycling Units . | . . . . Scanalyzers . | . . . . Garrison Access . | . . . . Total Hacks 23 | . 23 . . Successful 13 | . 13 . . Failed 10 | . 10 . . Catastrophic 1 | . 1 . . Database Lockouts . | . . . . Manual 21 | . 21 . . Terminals 23 | . 23 . . Fabricators . | . . . . Repair Stations . | . . . . Recycling Units . | . . . . Scanalyzers . | . . . . Garrison Access . | . . . . Terminal Hacks 6 | . 6 . . Robot Analysis 3 | . 3 . . Branch Access Points 1 | . 1 . . Unreport Threat 1 | . 1 . . Locate Traps 1 | . 1 . . Fabricator Hacks . | . . . . Repair Station Hacks . | . . . . Recycling Unit Hacks . | . . . . Scanalyzer . | . . . . Garrison Access Hacks . | . . . . Unauthorized Hacks 7 | . 7 . . Terminals 7 | . 7 . . Track 1 | . 1 . . Botnet 1 | . 1 . . Skim 5 | . 5 . . Fabricators . | . . . . Repair Stations . | . . . . Recycling Units . | . . . . Scanalyzers . | . . . . Garrison Access . | . . . . Data Cores Recovered . | . . . . Used . | . . . . Hacking Detections 7 | . 7 . . Full Trace Events . | . . . . Feedback Events . | . . . . Feedback Blocked . | . . . . Robot Schematics Acquired . | . . . . Robots Built . | . . . . Authchips . | . . . . Time . | . . . . Total Robot Build Rating . | . . . . Part Schematics Acquired . | . . . . Parts Built . | . . . . Authchips . | . . . . Time . | . . . . Total Part Build Rating . | . . . . Part Studies Acquired . | . . . . Parts Repaired . | . . . . Time . | . . . . Parts Recycled . | . . . . Recycled Matter . | . . . . Retrieved Matter . | . . . . Retrieved Components . | . . . . Parts Scanalyzed . | . . . . Part Schematics Acquired . | . . . . Parts Damaged . | . . . . Bothacking | -11 -10 -10 -9 ------------ Run | Yrd Mat Min Mat Used RIF Installer . | . . . . Robots Hacked . | . . . . Non-combat . | . . . . Combat . | . . . . Robot Hacks Applied . | . . . . Relay Couplers Released . | . . . . Fabnet Peak Effective % . | . . . . Robots Rewired . | . . . . Allies Hacked . | . . . . Hacks Repelled . | . . . . Allies | -11 -10 -10 -9 -------- Run | Yrd Mat Min Mat Total Allies . | . . . . Largest Group . | . . . . Highest-Rated Group . | . . . . Highest-Rated Ally . | . . . . Total Orders . | . . . . Ally Attacks . | . . . . Total Damage . | . . . . Kills . | . . . . Allies Corrupted . | . . . . Allies Melted . | . . . . Intel | -11 -10 -10 -9 ------- Run | Yrd Mat Min Mat Active Infowar (turns) . | . . . . Robot Analysis Total 3 | . 3 . . Derelict Logs Recovered . | . . . . Drone Launches . | . . . . Drone Recoveries . | . . . . Exploration | -11 -10 -10 -9 ------------- Run | Yrd Mat Min Mat Turns Passed 1863 | 153 1415 69 226 Spaces Moved 784 | 70 631 44 39 Core . | . . . . Treads 784 | 70 631 44 39 Legs . | . . . . Wheels . | . . . . Hover . | . . . . Flight . | . . . . Fastest Speed 155 | 160 160 160 155 Average Speed 159 | 160 160 160 159 Slowest Speed 160 | 160 160 160 160 Overloaded Moves . | . . . . Propulsion Burnouts . | . . . . Robots Hopped . | . . . . Potential Cave-ins . | . . . . Cave-ins Triggered . | . . . . Exploration Rate (%) 33 | 4 95 25 10 Regions Visited 3 Branch Regions 1 Pre-discovered Areas . | . . . . Known Exits Taken 2 | . 1 1 . Unknown Exits Taken 1 | 1 . . . Scrap Searched . | . . . . Spaces Dug . | . . . . Terrain Destroyed . | . . . . Melee . | . . . . Projectile . | . . . . AOE . | . . . . Terrain Rammed . | . . . . Walls Destroyed . | . . . . Machines Disabled . | . . . . Actions | -11 -10 -10 -9 --------- Run | Yrd Mat Min Mat Total 1111 | 79 843 43 146 Wait 251 | 2 160 . 89 Move 781 | 69 630 43 39 Hop . | . . . . Pick Up . | . . . . Fast Attach . | . . . . Attach 2 | . 2 . . Detach . | . . . . Swap . | . . . . Drop . | . . . . Fire 75 | 8 49 . 18 Melee . | . . . . Ram . | . . . . Kick . | . . . . Crush 2 | . 2 . . Escape Stasis . | . . . . Rewire . | . . . . Trap . | . . . . Miscellaneous . | . . . . Route ------- -11/Scrapyard -10/Materials (discovered 5 exits: *Mat x3 / *Min / [*Sub]) -10/Mines -9/Materials History --------- Turn | Location | Event 7 | -11/Scrapyard | Discovered new exit (range 16) 154 | -11/Scrapyard | Entered Materials 307 | -10/Materials | Build established: Mutant 487 | -10/Materials | Discovered new exit (range 10) 592 | -10/Materials | Discovered new exit (range 7) 1052 | -10/Materials | Discovered new exit (range 11) 1428 | -10/Materials | Learned Storage trap positions 1507 | -10/Materials | Identified exit to Materials 1507 | -10/Materials | Identified exit to Mines 1569 | -10/Materials | Entered Mines 1622 | -10/Mines | Discovered exit to Materials (range 12) 1638 | -10/Mines | Entered Materials 1638 | -9/Materials | Evolved 2 slots: Propulsion x1, Utility x1 1864 | -9/Materials | Self-destructed Last Messages --------------- 01723_ Triggered Alarm Trap. 01723_ An alarm sounds. 01723_ ALERT: Alarm triggered, dispatching investigation squad. 01749_ U-05 Engineer lays Concrete. [Purchased: Adv. Treads] 01798_ W-16 Scout sends out distress signal. 01812_ G-34 Mercenary destroyed. 01822_ G-34 Mercenary suffers critical hit (Burn). 01822_ G-34 Mercenary overheating. 01823_ G-34 Mercenary heat short circuits Aluminum Leg. 01823_ G-34 Mercenary critical meltdown. 01829_ M-13 Machinist sends out distress signal. 01840_ G-34 Mercenary destroyed. 01852_ Flamer destroyed. 01860_ Cooling System destroyed. 01862_ G-34 Mercenary heat short circuits Aluminum Leg. Map ----- +----------------------------------------------------+ | | | | | | | | | | | | | | | | | ?????????????????????????????????????????????????? | | ?????????????????????????????????????????????????? | | ????????????#######??????????????????????????????? | | ?????######## #??????????????????????????????? | | ?????# ######?#???????????????????????? | | ?????# " # #???????????????????????? | | ?????# # """ #???????????????????????? | | ?????######## # """ #???????????????????????? | | ????########## ## R" #???????????????????????? | | ????# # ## """ #???????????????????????? | | ????# """ # ## #???????????????????????? | | ????# """ + ###+#####???????????????????????? | | ????# """ # % ###########??????????????? | | ????# # # ???????????????? | | ????# """ ?# # "" ???????????????? | | ????# """ ?######## # "" ???????????????? | | ????# """ ??# ?# # T"????????????????? | | ?????? ??# """?# #@""" ""????????????????? | | ??????####???# """ # %+%""" ""????????????????? | | ?????????????# """ # # """ #??????????????? | | ?????????????# + # ???????????????? | | ?????????????# """ # ##########???????????????? | | ?????????????# """ # #????????????????????????? | | ?????????????# """?# #????????????????????????? | | ?????????????# ?# #????????????????????????? | | ?????????????? ""??# #????????????????????????? | | ?????????????# ""??# #????????????????????????? | | ?????????????# "???# #????????????????????????? | | ????????????????????# #????????????????????????? | | ????????????????????# #????????????????????????? | | ????????????????????# #????????????????????????? | | ????????????????????# #????????????????????????? | | ????????????????????? #????????????????????????? | | ????????????????????? #????????????????????????? | | ????????????????????? ?????????????????????????? | | ?????????????????????????????????????????????????? | | ?????????????????????????????????????????????????? | | ?????????????????????????????????????????????????? | | ?????????????????????????????????????????????????? | | ?????????????????????????????????????????????????? | | ?????????????????????????????????????????????????? | | ?????????????????????????????????????????????????? | +----------------------------------------------------+ Best States ------------- Heat Dissipation 72 Energy Generation 12 Energy Capacity 265 Matter Stores 300 Matter Capacity 300 Sight Range 16 Terrain Scan Density 10 Armor Coverage 225 Evasion (%) 40 Recoil Reduction 3 Item Schematics ----------------- None Robot Schematics ------------------ None Fabricated ------------ Nothing Repaired ---------- Nothing Studied --------- None Alien Tech Used ----------------- None Achievements -------------- None Challenges ------------ None Cogshop Purchases (13) ------------------------ Flamer (699) Flamer (699) Cooling System (699) Cooling System (699) Lgt. Treads (749) Lgt. Treads (749) Imp. Ion Engine (699) Flamer (515) Flamer (515) Lgt. Treads (774) Imp. Ion Engine (574) Hrd. Medium Armor Plating (797) Adv. Treads (1239) Game ------ Seed KineticLaunchStripper Manual? 0 Play Time 00:18:35 Cumulative 148.6 hours Start 2026.07.19 @ 21:39:11 End 2026.07.19 @ 22:02:30 Sessions 3 Manual Loads 0 Difficulty Rogue Special Mode AFD2019/Pay2Buy Game No. 104 Rogue 104 Adventurer 0 Explorer 0 Win Type - Total 2 Types 1/0/0/1/0/0/0/0/0/0 Lore% 49 Gallery% 58 Achievement% 54 Wizard Run 0 Options --------- Layout 2 ASCII 0 Keyboard 0 Movement Mouse Keybinds 0 Fullscreen 1 Font 48/Smallcaps Map View 50x44 Zoom Use 0% Tactical HUD 1 Map Filters NONE Filters NONE Steam 1 RUN: 7b2ef321-97b9-4c1c-9042-673bad183d94